[Event "SM-blixten 2025"]
[Site "Uppsala, Sweden"]
[Date "2025.07.03"]
[Round "3.2"]
[White "Seo, Jung Min"]
[Black "Muntean, Victor"]
[Result "1/2-1/2"]
[TimeControl "3 min + 2 sec increment starting from move 1"]
[WhiteTitle "IM"]
[WhiteElo "2468"]
[BlackElo "2140"]

1. e4 {[%clk 00:03:03]} e5 {[%clk 00:03:04]} {[%emt 00:00:01]} 2. Nf3 {[%clk
00:03:05]} Nc6 {[%clk 00:03:05]} 3. Nc3 {[%clk 00:03:06]} Nf6 {[%clk 00:03:06]}
{[%emt 00:00:01]} 4. Bb5 {[%clk 00:03:06]} {[%emt 00:00:01]} Bd6 {[%clk
00:03:07]} {[%emt 00:00:02]} 5. O-O {[%clk 00:03:05]} {[%emt 00:00:03]} O-O
{[%clk 00:03:04]} {[%emt 00:00:05]} 6. d3 {[%clk 00:03:05]} {[%emt 00:00:02]}
a6 {[%clk 00:03:04]} {[%emt 00:00:03]} 7. Bxc6 {[%clk 00:02:54]} {[%emt
00:00:12]} dxc6 {[%clk 00:03:04]} {[%emt 00:00:01]} 8. Ne2 {[%clk 00:02:55]}
{[%emt 00:00:02]} h6 {[%clk 00:02:56]} {[%emt 00:00:10]} 9. Ng3 {[%clk
00:02:56]} {[%emt 00:00:01]} Re8 {[%clk 00:02:51]} {[%emt 00:00:07]} 10. h3
{[%clk 00:02:50]} {[%emt 00:00:07]} Bf8 {[%clk 00:02:47]} {[%emt 00:00:07]} 11.
a4 {[%clk 00:02:42]} {[%emt 00:00:11]} c5 {[%clk 00:02:43]} {[%emt 00:00:05]}
12. b3 {[%clk 00:02:36]} {[%emt 00:00:07]} g6 {[%clk 00:02:29]} {[%emt
00:00:16]} 13. Bb2 {[%clk 00:02:37]} {[%emt 00:00:02]} Qd6 {[%clk 00:02:29]}
{[%emt 00:00:01]} 14. Nd2 {[%clk 00:02:35]} {[%emt 00:00:04]} Be6 {[%clk
00:02:19]} {[%emt 00:00:12]} 15. Nc4 {[%clk 00:02:26]} {[%emt 00:00:11]} Bxc4
{[%clk 00:02:20]} {[%emt 00:00:01]} 16. bxc4 {[%clk 00:02:27]} {[%emt
00:00:01]} c6 {[%clk 00:02:01]} {[%emt 00:00:21]} 17. a5 {[%clk 00:02:26]}
{[%emt 00:00:04]} Rad8 {[%clk 00:01:48]} {[%emt 00:00:14]} 18. Qf3 {[%clk
00:02:20]} {[%emt 00:00:07]} Nh7 {[%clk 00:01:44]} {[%emt 00:00:07]} 19. h4
{[%clk 00:02:12]} {[%emt 00:00:10]} Be7 {[%clk 00:01:34]} {[%emt 00:00:12]} 20.
h5 {[%clk 00:02:13]} {[%emt 00:00:01]} Ng5 {[%clk 00:01:34]} {[%emt 00:00:02]}
21. Qg4 {[%clk 00:02:08]} {[%emt 00:00:06]} Bf6 {[%clk 00:01:10]} {[%emt
00:00:28]} 22. Bc1 {[%clk 00:02:01]} {[%emt 00:00:08]} Qe6 {[%clk 00:01:00]}
{[%emt 00:00:12]} 23. Qe2 {[%clk 00:01:54]} {[%emt 00:00:08]} Kg7 {[%clk
00:00:44]} {[%emt 00:00:19]} 24. Rb1 {[%clk 00:01:55]} {[%emt 00:00:01]} Rd7
{[%clk 00:00:44]} {[%emt 00:00:03]} 25. Be3 {[%clk 00:01:52]} {[%emt 00:00:04]}
Qd6 {[%clk 00:00:38]} {[%emt 00:00:09]} 26. Rb2 {[%clk 00:01:37]} {[%emt
00:00:15]} Ne6 {[%clk 00:00:39]} {[%emt 00:00:02]} 27. Rfb1 {[%clk 00:01:33]}
{[%emt 00:00:05]} Rb8 {[%clk 00:00:38]} {[%emt 00:00:04]} 28. Qg4 {[%clk
00:01:24]} {[%emt 00:00:11]} Bg5 {[%clk 00:00:29]} {[%emt 00:00:11]} 29. Nf1
{[%clk 00:01:18]} {[%emt 00:00:08]} Bxe3 {[%clk 00:00:26]} {[%emt 00:00:05]} 30.
Nxe3 {[%clk 00:01:18]} {[%emt 00:00:01]} Kh7 {[%clk 00:00:22]} {[%emt
00:00:07]} 31. g3 {[%clk 00:01:09]} {[%emt 00:00:11]} Nd4 {[%clk 00:00:19]}
{[%emt 00:00:05]} 32. Kg2 {[%clk 00:01:10]} {[%emt 00:00:01]} Qe6 {[%clk
00:00:18]} {[%emt 00:00:03]} 33. Qxe6 {[%clk 00:01:08]} {[%emt 00:00:05]} Nxe6
{[%clk 00:00:19]} {[%emt 00:00:01]} 34. Ng4 {[%clk 00:01:04]} {[%emt 00:00:05]}
Kg7 {[%clk 00:00:12]} {[%emt 00:00:09]} 35. Nxe5 {[%clk 00:01:04]} {[%emt
00:00:02]} Rc7 {[%clk 00:00:13]} {[%emt 00:00:01]} 36. hxg6 {[%clk 00:01:05]}
{[%emt 00:00:02]} fxg6 {[%clk 00:00:14]} {[%emt 00:00:01]} 37. f4 {[%clk
00:01:01]} {[%emt 00:00:05]} Nd4 {[%clk 00:00:11]} {[%emt 00:00:05]} 38. Nf3
{[%clk 00:00:57]} {[%emt 00:00:05]} Ne6 {[%clk 00:00:09]} {[%emt 00:00:05]} 39.
Rh1 {[%clk 00:00:51]} {[%emt 00:00:07]} Re8 {[%clk 00:00:09]} {[%emt 00:00:02]}
40. Rbb1 {[%clk 00:00:46]} {[%emt 00:00:08]} Rd7 {[%clk 00:00:07]} {[%emt
00:00:05]} 41. Rbf1 {[%clk 00:00:45]} {[%emt 00:00:02]} Nd4 {[%clk 00:00:04]}
{[%emt 00:00:05]} 42. Nxd4 {[%clk 00:00:45]} {[%emt 00:00:01]} cxd4 {[%clk
00:00:05]} {[%emt 00:00:01]} 43. g4 {[%clk 00:00:39]} {[%emt 00:00:08]} Rf7
{[%clk 00:00:07]} {[%emt 00:00:01]} 44. Kg3 {[%clk 00:00:40]} {[%emt 00:00:02]}
Ref8 {[%clk 00:00:08]} {[%emt 00:00:01]} 45. Rf2 {[%clk 00:00:37]} {[%emt
00:00:04]} Re7 {[%clk 00:00:08]} {[%emt 00:00:02]} 46. Rb1 {[%clk 00:00:25]}
{[%emt 00:00:14]} Rff7 {[%clk 00:00:09]} {[%emt 00:00:01]} 47. Rb4 {[%clk
00:00:22]} {[%emt 00:00:04]} Re6 {[%clk 00:00:10]} {[%emt 00:00:02]} 48. c5
{[%clk 00:00:21]} {[%emt 00:00:04]} Rd7 {[%clk 00:00:11]} 49. Rf1 {[%clk
00:00:20]} {[%emt 00:00:02]} g5 {[%clk 00:00:08]} {[%emt 00:00:06]} 50. f5
{[%clk 00:00:19]} {[%emt 00:00:02]} Re5 {[%clk 00:00:09]} {[%emt 00:00:01]} 51.
Rc4 {[%clk 00:00:20]} {[%emt 00:00:01]} Kf6 {[%clk 00:00:08]} {[%emt 00:00:03]}
52. Rb1 {[%clk 00:00:21]} Rde7 {[%clk 00:00:09]} {[%emt 00:00:02]} 53. Rb2
{[%clk 00:00:11]} {[%emt 00:00:13]} Rd7 {[%clk 00:00:10]} {[%emt 00:00:01]} 54.
Kf3 {[%clk 00:00:07]} {[%emt 00:00:05]} Kg7 {[%clk 00:00:11]} 55. Rbb4 {[%clk
00:00:07]} {[%emt 00:00:03]} Kf6 {[%clk 00:00:12]} {[%emt 00:00:01]} 56. Rxd4
{[%clk 00:00:07]} {[%emt 00:00:02]} Rxd4 {[%clk 00:00:13]} 57. Rxd4 {[%clk
00:00:07]} {[%emt 00:00:01]} Rxc5 {[%clk 00:00:15]} {[%emt 00:00:02]} 58. c4
{[%clk 00:00:07]} {[%emt 00:00:02]} Rxa5 {[%clk 00:00:16]} {[%emt 00:00:01]} 59.
Rd6+ {[%clk 00:00:07]} {[%emt 00:00:01]} Kg7 {[%clk 00:00:17]} {[%emt
00:00:01]} 60. Rd7+ {[%clk 00:00:07]} {[%emt 00:00:03]} Kf6 {[%clk 00:00:18]}
{[%emt 00:00:01]} 61. Rxb7 {[%clk 00:00:08]} {[%emt 00:00:01]} Ra3 {[%clk
00:00:18]} {[%emt 00:00:01]} 62. Ke3 {[%clk 00:00:09]} Ra1 {[%clk 00:00:16]}
{[%emt 00:00:04]} 63. Rb6 {[%clk 00:00:09]} {[%emt 00:00:02]} a5 {[%clk
00:00:15]} {[%emt 00:00:03]} 64. Rxc6+ {[%clk 00:00:10]} {[%emt 00:00:02]} Kg7
{[%clk 00:00:16]} 65. e5 {[%clk 00:00:10]} {[%emt 00:00:02]} a4 {[%clk
00:00:17]} 66. Rc7+ {[%clk 00:00:12]} {[%emt 00:00:01]} Kf8 {[%clk 00:00:18]}
{[%emt 00:00:01]} 67. Kd4 {[%clk 00:00:11]} {[%emt 00:00:03]} a3 {[%clk
00:00:16]} {[%emt 00:00:04]} 68. Ra7 {[%clk 00:00:11]} {[%emt 00:00:02]} h5
{[%clk 00:00:16]} {[%emt 00:00:01]} 69. gxh5 {[%clk 00:00:12]} {[%emt
00:00:02]} g4 {[%clk 00:00:17]} 70. h6 {[%clk 00:00:10]} {[%emt 00:00:04]} g3
{[%clk 00:00:15]} {[%emt 00:00:04]} 71. h7 {[%clk 00:00:04]} {[%emt 00:00:07]}
Rh1 {[%clk 00:00:16]} {[%emt 00:00:02]} 72. Ra8+ {[%clk 00:00:04]} {[%emt
00:00:02]} Kg7 {[%clk 00:00:17]} {[%emt 00:00:01]} 73. h8=Q+ {[%clk 00:00:04]}
{[%emt 00:00:02]} Rxh8 {[%clk 00:00:18]} {[%emt 00:00:01]} 74. f6+ {[%clk
00:00:05]} {[%emt 00:00:01]} Kf7 {[%clk 00:00:18]} {[%emt 00:00:02]} 75. Rxh8
{[%clk 00:00:05]} {[%emt 00:00:02]} g2 {[%clk 00:00:19]} {[%emt 00:00:01]} 76.
Rh7+ {[%clk 00:00:05]} {[%emt 00:00:01]} Ke6 {[%clk 00:00:20]} {[%emt
00:00:02]} 77. Rg7 {[%clk 00:00:06]} {[%emt 00:00:01]} a2 {[%clk 00:00:21]}
{[%emt 00:00:01]} 78. Rxg2 {[%clk 00:00:05]} {[%emt 00:00:02]} a1=Q+ {[%clk
00:00:23]} 79. Ke3 {[%clk 00:00:05]} {[%emt 00:00:03]} Qxe5+ {[%clk 00:00:23]}
{[%emt 00:00:01]} 80. Kf3 {[%clk 00:00:05]} {[%emt 00:00:02]} Qxf6+ {[%clk
00:00:24]} 81. Ke3 {[%clk 00:00:06]} Qe5+ {[%clk 00:00:25]} {[%emt 00:00:02]}
1/2-1/2

[Event "SM-blixten 2025"]
[Site "Uppsala, Sweden"]
[Date "2025.07.03"]
[Round "4.8"]
[White "Ask, Josef"]
[Black "Gruvaeus, Curt"]
[Result "1-0"]
[TimeControl "3 min + 2 sec increment starting from move 1"]
[WhiteTitle "FM"]
[BlackTitle "FM"]
[WhiteElo "2130"]
[BlackElo "2156"]

1. b3 {[%clk 00:03:04]} g6 {[%clk 00:03:02]} {[%emt 00:00:02]} 2. Bb2 {[%clk
00:03:05]} Nf6 {[%clk 00:03:03]} {[%emt 00:00:01]} 3. Bxf6 {[%emt 00:00:01]}
exf6 4. c4 {[%clk 00:03:05]} Bg7 {[%clk 00:03:03]} {[%emt 00:00:02]} 5. Nc3
{[%clk 00:03:06]} {[%emt 00:00:01]} f5 {[%clk 00:03:04]} {[%emt 00:00:01]} 6.
Rc1 {[%clk 00:03:07]} O-O {[%clk 00:03:04]} {[%emt 00:00:03]} 7. g3 {[%clk
00:03:08]} {[%emt 00:00:01]} c6 {[%clk 00:02:59]} {[%emt 00:00:07]} 8. Nh3
{[%clk 00:03:08]} {[%emt 00:00:02]} d5 {[%clk 00:02:56]} {[%emt 00:00:04]} 9.
cxd5 {[%clk 00:03:04]} {[%emt 00:00:06]} cxd5 {[%clk 00:02:57]} 10. d4 {[%clk
00:03:03]} {[%emt 00:00:03]} Nc6 {[%clk 00:02:57]} {[%emt 00:00:03]} 11. e3
{[%clk 00:03:04]} Re8 {[%clk 00:02:48]} {[%emt 00:00:10]} 12. Be2 {[%clk
00:02:56]} {[%emt 00:00:11]} g5 {[%clk 00:02:39]} {[%emt 00:00:11]} 13. O-O
{[%clk 00:02:28]} {[%emt 00:00:30]} f4 {[%clk 00:02:32]} {[%emt 00:00:09]} 14.
Bg4 {[%clk 00:02:29]} {[%emt 00:00:01]} f5 {[%clk 00:02:24]} {[%emt 00:00:10]}
15. Bh5 {[%clk 00:02:30]} {[%emt 00:00:01]} fxe3 {[%clk 00:01:50]} {[%emt
00:00:35]} 16. Bxe8 {[%clk 00:02:20]} {[%emt 00:00:13]} Qxe8 {[%clk 00:01:46]}
{[%emt 00:00:05]} 17. fxe3 {[%clk 00:02:08]} {[%emt 00:00:14]} Qxe3+ {[%clk
00:01:45]} {[%emt 00:00:03]} 18. Nf2 {[%clk 00:02:07]} {[%emt 00:00:03]} Nxd4
{[%clk 00:01:35]} {[%emt 00:00:12]} 19. Kg2 {[%clk 00:01:41]} {[%emt 00:00:28]}
Qe6 {[%clk 00:01:03]} {[%emt 00:00:33]} 20. Re1 {[%clk 00:01:38]} {[%emt
00:00:06]} Qd6 {[%clk 00:01:02]} {[%emt 00:00:03]} 21. Qh5 {[%clk 00:01:31]}
{[%emt 00:00:09]} h6 {[%clk 00:00:43]} {[%emt 00:00:21]} 22. Re8+ {[%clk
00:00:57]} {[%emt 00:00:38]} Kh7 {[%clk 00:00:44]} 23. Rce1 {[%clk 00:00:47]}
{[%emt 00:00:12]} f4 {[%clk 00:00:34]} {[%emt 00:00:11]} 24. Qf7 {[%clk
00:00:38]} {[%emt 00:00:12]} fxg3 {[%clk 00:00:05]} {[%emt 00:00:31]} 25. hxg3
{[%clk 00:00:37]} {[%emt 00:00:03]} Nf5 {[%emt 00:00:06]} 26. Qg8+ {[%emt
00:00:09]} Kg6 {[%emt 00:00:13]} 1-0

[Event "SM-blixten 2025"]
[Site "Uppsala, Sweden"]
[Date "2025.07.03"]
[Round "6.4"]
[White "Muntean, Victor"]
[Black "Nilsson, Joakim"]
[Result "0-1"]
[TimeControl "3 min + 2 sec increment starting from move 1"]
[BlackTitle "FM"]
[WhiteElo "2140"]
[BlackElo "2208"]

1. e4 {[%clk 00:03:03]} d6 {[%clk 00:03:03]} {[%emt 00:00:02]} 2. d4 {[%clk
00:03:04]} Nf6 {[%clk 00:03:03]} {[%emt 00:00:03]} 3. f3 {[%clk 00:03:05]}
{[%emt 00:00:01]} c6 {[%clk 00:03:01]} {[%emt 00:00:04]} 4. g4 {[%clk
00:03:06]} Nfd7 {[%clk 00:02:57]} {[%emt 00:00:07]} 5. c4 {[%clk 00:03:02]}
{[%emt 00:00:06]} e5 {[%clk 00:02:57]} {[%emt 00:00:02]} 6. d5 {[%clk
00:03:03]} a5 {[%clk 00:02:58]} 7. Be3 {[%clk 00:02:59]} {[%emt 00:00:06]} Nc5
{[%clk 00:02:58]} {[%emt 00:00:02]} 8. Nc3 {[%clk 00:02:51]} {[%emt 00:00:10]}
Be7 {[%clk 00:02:59]} {[%emt 00:00:01]} 9. Qd2 {[%clk 00:02:43]} {[%emt
00:00:10]} Bh4+ {[%clk 00:02:58]} {[%emt 00:00:03]} 10. Bf2 {[%clk 00:02:44]}
{[%emt 00:00:01]} Bg5 {[%clk 00:02:59]} 11. Be3 {[%clk 00:02:43]} {[%emt
00:00:04]} Bh4+ {[%clk 00:02:51]} {[%emt 00:00:09]} 12. Bf2 {[%clk 00:02:44]}
{[%emt 00:00:01]} Nba6 {[%clk 00:02:53]} 13. O-O-O {[%clk 00:02:25]} {[%emt
00:00:21]} Nb4 {[%clk 00:02:52]} {[%emt 00:00:03]} 14. a3 {[%clk 00:01:59]}
{[%emt 00:00:28]} Nb3+ {[%clk 00:02:52]} {[%emt 00:00:01]} 15. Kb1 {[%clk
00:01:58]} {[%emt 00:00:04]} Nxd2+ {[%clk 00:02:53]} {[%emt 00:00:02]} 16. Rxd2
{[%clk 00:01:58]} {[%emt 00:00:01]} Bxf2 {[%clk 00:02:53]} {[%emt 00:00:02]} 17.
Rxf2 {[%clk 00:01:58]} {[%emt 00:00:02]} Na6 {[%clk 00:02:54]} {[%emt
00:00:01]} 18. Rd2 {[%clk 00:01:54]} {[%emt 00:00:06]} Nc5 {[%clk 00:02:52]}
{[%emt 00:00:04]} 19. h4 {[%clk 00:01:52]} {[%emt 00:00:04]} h5 {[%clk
00:02:36]} {[%emt 00:00:19]} 20. g5 {[%clk 00:01:45]} {[%emt 00:00:08]} O-O
{[%clk 00:02:35]} {[%emt 00:00:03]} 21. Nge2 {[%clk 00:01:45]} {[%emt
00:00:02]} f6 {[%clk 00:02:34]} {[%emt 00:00:03]} 22. Ng3 {[%clk 00:01:35]}
{[%emt 00:00:11]} fxg5 {[%clk 00:02:34]} {[%emt 00:00:02]} 23. Nxh5 {[%clk
00:01:28]} {[%emt 00:00:09]} gxh4 {[%clk 00:02:33]} {[%emt 00:00:04]} 24. Rg2
{[%clk 00:01:27]} {[%emt 00:00:03]} Rf7 {[%clk 00:02:33]} {[%emt 00:00:02]} 25.
Rhg1 {[%clk 00:01:26]} {[%emt 00:00:03]} Qf8 {[%clk 00:02:29]} {[%emt
00:00:06]} 26. Nd1 {[%clk 00:01:15]} {[%emt 00:00:13]} h3 {[%clk 00:02:20]}
{[%emt 00:00:11]} 27. Rg3 {[%clk 00:01:12]} {[%emt 00:00:05]} h2 {[%clk
00:02:21]} {[%emt 00:00:01]} 28. Rh1 {[%clk 00:01:12]} {[%emt 00:00:02]} Rxf3
{[%clk 00:02:05]} {[%emt 00:00:17]} 29. Rxg7+ {[%clk 00:00:44]} {[%emt
00:00:30]} Qxg7 {[%clk 00:02:06]} {[%emt 00:00:01]} 30. Nxg7 {[%clk 00:00:45]}
{[%emt 00:00:02]} Kxg7 {[%clk 00:02:07]} {[%emt 00:00:01]} 31. Bg2 {[%clk
00:00:46]} Rg3 {[%clk 00:01:59]} {[%emt 00:00:11]} 32. Rxh2 {[%clk 00:00:47]}
{[%emt 00:00:01]} Bg4 {[%clk 00:01:56]} {[%emt 00:00:05]} 33. Nf2 {[%clk
00:00:35]} {[%emt 00:00:14]} Rh8 {[%clk 00:01:54]} {[%emt 00:00:03]} 0-1

[Event "SM-blixten 2025"]
[Site "Uppsala, Sweden"]
[Date "2025.07.03"]
[Round "7.10"]
[White "Olund, Joar"]
[Black "Muntean, Victor"]
[Result "1-0"]
[TimeControl "3 min + 2 sec increment starting from move 1"]
[WhiteTitle "FM"]
[WhiteElo "2369"]
[BlackElo "2140"]

1. d4 {[%clk 00:03:03]} Nf6 {[%clk 00:03:04]} {[%emt 00:00:01]} 2. Bg5 {[%clk
00:03:04]} {[%emt 00:00:02]} g6 {[%clk 00:03:02]} {[%emt 00:00:03]} 3. Bxf6
{[%clk 00:03:04]} {[%emt 00:00:02]} exf6 {[%clk 00:03:03]} {[%emt 00:00:01]} 4.
c4 {[%clk 00:03:06]} d5 {[%clk 00:03:03]} {[%emt 00:00:03]} 5. cxd5 {[%clk
00:03:06]} {[%emt 00:00:01]} Qxd5 {[%clk 00:03:03]} {[%emt 00:00:01]} 6. Nc3
{[%clk 00:03:08]} Qa5 {[%clk 00:02:43]} {[%emt 00:00:22]} 7. a3 {[%clk
00:02:53]} {[%emt 00:00:17]} f5 {[%clk 00:02:35]} {[%emt 00:00:11]} 8. e3
{[%clk 00:02:53]} c6 {[%clk 00:02:32]} {[%emt 00:00:05]} 9. g3 {[%clk
00:02:44]} {[%emt 00:00:11]} Bg7 {[%clk 00:02:33]} 10. Bg2 {[%clk 00:02:44]}
{[%emt 00:00:02]} O-O {[%clk 00:02:33]} {[%emt 00:00:02]} 11. b4 {[%clk
00:02:39]} {[%emt 00:00:07]} Qd8 {[%clk 00:02:26]} {[%emt 00:00:09]} 12. Nge2
{[%clk 00:02:39]} {[%emt 00:00:02]} Be6 {[%clk 00:02:25]} {[%emt 00:00:03]} 13.
Qd3 {[%clk 00:02:35]} {[%emt 00:00:05]} Nd7 {[%clk 00:02:25]} {[%emt 00:00:03]}
14. Nf4 {[%clk 00:02:34]} {[%emt 00:00:02]} Qe7 {[%clk 00:02:16]} {[%emt
00:00:12]} 15. O-O {[%clk 00:02:29]} {[%emt 00:00:06]} Nb6 {[%clk 00:02:13]}
{[%emt 00:00:06]} 16. Nxe6 {[%clk 00:02:30]} {[%emt 00:00:01]} Qxe6 {[%clk
00:02:00]} {[%emt 00:00:15]} 17. Rab1 {[%clk 00:02:21]} {[%emt 00:00:10]} Qc4
{[%clk 00:01:57]} {[%emt 00:00:05]} 18. Rfd1 {[%clk 00:02:18]} {[%emt
00:00:05]} Rad8 {[%clk 00:01:55]} {[%emt 00:00:05]} 19. a4 {[%clk 00:02:15]}
Qxd3 {[%clk 00:01:34]} {[%emt 00:00:28]} 20. Rxd3 {[%clk 00:02:16]} Rfe8 {[%clk
00:01:35]} {[%emt 00:00:02]} 21. a5 {[%clk 00:02:04]} Nc4 {[%clk 00:01:23]}
{[%emt 00:00:28]} 22. Na4 {[%clk 00:01:36]} Bf8 {[%clk 00:01:09]} {[%emt
00:00:46]} 23. Rc1 {[%clk 00:00:59]} Ne5 {[%clk 00:00:58]} {[%emt 00:00:52]} 24.
Rb3 {[%clk 00:00:59]} Nd7 {[%clk 00:00:57]} {[%emt 00:00:05]} 25. b5 {[%clk
00:00:54]} cxb5 {[%clk 00:00:44]} {[%emt 00:00:22]} 26. Rxb5 {[%clk 00:00:55]}
b6 {[%clk 00:00:43]} {[%emt 00:00:04]} 27. Rc7 {[%clk 00:00:27]} a6 {[%clk
00:00:37]} {[%emt 00:00:38]} 28. Rxb6 {[%clk 00:00:21]} Nxb6 {[%clk 00:00:38]}
{[%emt 00:00:09]} 29. axb6 {[%clk 00:00:22]} Rb8 {[%clk 00:00:22]} {[%emt
00:00:19]} 30. b7 {[%clk 00:00:11]} Re7 {[%clk 00:00:17]} {[%emt 00:00:21]} 31.
Rc8 {[%clk 00:00:05]} Rexb7 {[%clk 00:00:16]} {[%emt 00:00:11]} 32. Bxb7 {[%clk
00:00:06]} Rxb7 {[%clk 00:00:17]} {[%emt 00:00:01]} 33. Ra8 {[%clk 00:00:07]}
Rb1+ {[%clk 00:00:11]} {[%emt 00:00:08]} 34. Kg2 {[%clk 00:00:08]} a5 {[%clk
00:00:10]} {[%emt 00:00:04]} 35. Rxa5 {[%clk 00:00:09]} {[%emt 00:00:02]} Ra1
{[%clk 00:00:11]} 36. Ra6 {[%clk 00:00:07]} {[%emt 00:00:02]} Ra3 {[%clk
00:00:11]} {[%emt 00:00:03]} 37. Ra8 {[%clk 00:00:04]} {[%emt 00:00:05]} Kg7
{[%clk 00:00:10]} {[%emt 00:00:03]} 38. Nb6 {[%clk 00:00:05]} {[%emt 00:00:01]}
Rb3 {[%clk 00:00:11]} 39. Nc4 {[%clk 00:00:06]} {[%emt 00:00:01]} Rc3 {[%clk
00:00:11]} {[%emt 00:00:02]} 40. Ne5 {[%clk 00:00:06]} {[%emt 00:00:02]} Bd6
{[%clk 00:00:11]} {[%emt 00:00:02]} 41. Nf3 {[%clk 00:00:04]} {[%emt 00:00:05]}
Rc2 {[%clk 00:00:10]} {[%emt 00:00:02]} 42. Ra1 {[%clk 00:00:04]} Bb4 {[%clk
00:00:11]} {[%emt 00:00:03]} 43. Rd1 {[%clk 00:00:05]} Bd6 {[%clk 00:00:11]}
{[%emt 00:00:03]} 44. Rd2 {[%clk 00:00:06]} Rc3 {[%clk 00:00:12]} {[%emt
00:00:02]} 45. Kf1 {[%clk 00:00:07]} Kf6 {[%clk 00:00:14]} {[%emt 00:00:02]} 46.
h4 {[%clk 00:00:08]} {[%emt 00:00:01]} h6 {[%clk 00:00:15]} 47. Ke2 {[%clk
00:00:09]} {[%emt 00:00:01]} Rc1 {[%clk 00:00:16]} {[%emt 00:00:01]} 48. Ra2
{[%clk 00:00:10]} Bb4 {[%clk 00:00:16]} {[%emt 00:00:02]} 49. Rb2 {[%clk
00:00:11]} {[%emt 00:00:01]} Ba3 {[%clk 00:00:17]} {[%emt 00:00:02]} 50. Rb3
{[%clk 00:00:10]} {[%emt 00:00:01]} Rc2+ {[%clk 00:00:12]} {[%emt 00:00:08]} 51.
Kd3 {[%clk 00:00:05]} {[%emt 00:00:07]} Rxf2 {[%clk 00:00:12]} {[%emt
00:00:01]} 52. Ne5 {[%clk 00:00:06]} {[%emt 00:00:02]} Bd6 {[%clk 00:00:09]}
{[%emt 00:00:06]} 53. Rb6 {[%clk 00:00:07]} {[%emt 00:00:01]} Ke6 {[%clk
00:00:05]} {[%emt 00:00:05]} 54. Nc4 {[%clk 00:00:07]} {[%emt 00:00:02]} Ke7
{[%clk 00:00:05]} {[%emt 00:00:02]} 55. Rxd6 {[%clk 00:00:06]} Rf3 {[%clk
00:00:06]} {[%emt 00:00:04]} 56. Ra6 {[%clk 00:00:06]} Rxg3 {[%clk 00:00:07]}
{[%emt 00:00:03]} 57. d5 {[%clk 00:00:08]} f4 {[%clk 00:00:06]} {[%emt
00:00:04]} 58. Ra7+ {[%clk 00:00:06]} {[%emt 00:00:03]} Kf6 {[%clk 00:00:06]}
{[%emt 00:00:02]} 59. d6 {[%emt 00:00:14]} 1-0

[Event "SM-blixten 2025"]
[Site "Uppsala, Sweden"]
[Date "2025.07.03"]
[Round "9.6"]
[White "Malmstig, Erik"]
[Black "Angulo Salinas, Julio Osvaldo"]
[Result "1-0"]
[TimeControl "3 min + 2 sec increment starting from move 1"]
[WhiteTitle "FM"]
[WhiteElo "2231"]
[BlackElo "1994"]

1. d4 {[%clk 00:03:03]} d5 {[%clk 00:03:03]} {[%emt 00:00:02]} 2. c4 {[%clk
00:03:04]} {[%emt 00:00:02]} dxc4 {[%clk 00:03:03]} {[%emt 00:00:01]} 3. Nc3
{[%clk 00:03:05]} a6 {[%clk 00:03:04]} {[%emt 00:00:02]} 4. a4 {[%clk
00:03:05]} {[%emt 00:00:01]} Nc6 {[%clk 00:03:04]} {[%emt 00:00:02]} 5. e3
{[%clk 00:03:06]} {[%emt 00:00:01]} e5 {[%clk 00:02:51]} {[%emt 00:00:15]} 6.
Nf3 {[%clk 00:03:00]} {[%emt 00:00:07]} exd4 {[%clk 00:02:52]} {[%emt
00:00:02]} 7. exd4 {[%clk 00:03:01]} {[%emt 00:00:01]} Bg4 {[%clk 00:02:49]}
{[%emt 00:00:05]} 8. Be3 {[%clk 00:02:59]} {[%emt 00:00:04]} Na5 {[%clk
00:02:48]} {[%emt 00:00:03]} 9. h3 {[%clk 00:02:55]} {[%emt 00:00:05]} Bh5
{[%clk 00:02:44]} {[%emt 00:00:06]} 10. Be2 {[%clk 00:02:50]} {[%emt 00:00:07]}
Nf6 {[%clk 00:02:45]} {[%emt 00:00:01]} 11. Ne5 {[%clk 00:02:49]} {[%emt
00:00:03]} Bxe2 {[%clk 00:02:45]} {[%emt 00:00:02]} 12. Qxe2 {[%clk 00:02:49]}
{[%emt 00:00:01]} Be7 {[%clk 00:02:39]} {[%emt 00:00:09]} 13. Nxc4 {[%clk
00:02:45]} {[%emt 00:00:06]} Nxc4 {[%clk 00:02:39]} {[%emt 00:00:02]} 14. Qxc4
{[%clk 00:02:46]} O-O {[%clk 00:02:40]} {[%emt 00:00:01]} 15. O-O {[%clk
00:02:43]} {[%emt 00:00:05]} h6 {[%clk 00:02:38]} {[%emt 00:00:04]} 16. d5
{[%clk 00:02:41]} {[%emt 00:00:05]} Bd6 {[%clk 00:02:38]} {[%emt 00:00:02]} 17.
Rad1 {[%clk 00:02:37]} {[%emt 00:00:05]} Qe7 {[%clk 00:02:24]} {[%emt
00:00:17]} 18. Rfe1 {[%clk 00:02:35]} {[%emt 00:00:03]} Qe5 {[%clk 00:02:24]}
{[%emt 00:00:03]} 19. f4 {[%clk 00:02:25]} {[%emt 00:00:12]} Qh5 {[%clk
00:02:13]} {[%emt 00:00:13]} 20. Bd4 {[%clk 00:02:14]} {[%emt 00:00:12]} Nd7
{[%clk 00:01:54]} {[%emt 00:00:21]} 21. Qf1 {[%clk 00:01:47]} {[%emt 00:00:28]}
Rae8 {[%clk 00:01:53]} {[%emt 00:00:03]} 22. Ne4 {[%clk 00:01:45]} {[%emt
00:00:04]} Bb4 {[%clk 00:01:49]} {[%emt 00:00:07]} 23. Re2 {[%clk 00:01:40]}
{[%emt 00:00:07]} Qf5 {[%clk 00:01:32]} {[%emt 00:00:19]} 24. Ng3 {[%clk
00:01:26]} {[%emt 00:00:16]} Qxd5 {[%clk 00:01:12]} {[%emt 00:00:22]} 25. Bxg7
{[%clk 00:01:20]} {[%emt 00:00:08]} Qc5+ {[%clk 00:01:06]} {[%emt 00:00:08]} 26.
Bd4 {[%clk 00:01:19]} {[%emt 00:00:03]} Qc6 {[%clk 00:01:07]} {[%emt 00:00:02]}
27. Nf5 {[%clk 00:01:10]} {[%emt 00:00:10]} Qg6 {[%clk 00:00:56]} {[%emt
00:00:13]} 28. Rxe8 {[%clk 00:01:03]} {[%emt 00:00:10]} Rxe8 {[%clk 00:00:57]}
{[%emt 00:00:01]} 29. Qd3 {[%clk 00:01:00]} {[%emt 00:00:04]} Nf8 {[%clk
00:00:45]} {[%emt 00:00:14]} 30. g4 {[%clk 00:00:49]} {[%emt 00:00:13]} c5
{[%clk 00:00:46]} {[%emt 00:00:01]} 31. Be5 {[%clk 00:00:46]} {[%emt 00:00:05]}
Ne6 {[%clk 00:00:42]} {[%emt 00:00:07]} 32. Qd7 {[%clk 00:00:41]} {[%emt
00:00:06]} Rf8 {[%clk 00:00:19]} {[%emt 00:00:25]} 33. Ne7+ {[%clk 00:00:42]}
{[%emt 00:00:01]} 1-0